bitfinex/quotes_BTCUSD_20250607
["timestamp","ask_amount","ask_price","bid_price","bid_amount"]
[1749318148098,0.7729181,105610.0,105600.0,0.0074999]
[1749318148313,0.76625343,105610.0,105600.0,0.0074999]
[1749318148512,0.74848086,105610.0,105600.0,0.0074999]
[1749318148728,0.77291809,105610.0,105600.0,0.0074999]
[1749318149452,0.77291587,105610.0,105600.0,0.0074999]
[1749318149660,0.75514475,105610.0,105600.0,0.0074999]
[1749318149851,0.77291521,105610.0,105600.0,0.0074999]
[1749318150075,0.76625124,105610.0,105600.0,0.0074999]
[1749318150244,0.77291513,105610.0,105600.0,0.0074999]
[1749318150445,0.75514475,105610.0,105600.0,0.0074999]
[1749318150650,0.77291514,105610.0,105600.0,0.0074999]
[1749318151179,0.77291516,105610.0,105600.0,0.0074999]
[1749318151397,0.74848086,105610.0,105600.0,0.0074999]
[1749318151599,0.77291538,105610.0,105600.0,0.0074999]
[1749318151804,0.76625141,105610.0,105600.0,0.0074999]
[1749318152010,0.74848086,105610.0,105600.0,0.0074999]
[1749318152213,0.75514482,105610.0,105600.0,0.0074999]
[1749318152417,0.77291531,105610.0,105600.0,0.0074999]
[1749318153060,0.7662514,105610.0,105600.0,0.0074999]
[1749318153268,0.77291536,105610.0,105600.0,0.0074999]
[1749318153484,4.8977186,105610.0,105600.0,0.0074999]
[1749318153694,4.89104853,105610.0,105600.0,0.0074999]
[1749318153929,4.87328386,105610.0,105600.0,0.0074999]
[1749318154124,4.8484675,105610.0,105600.0,0.0074999]
[1749318154330,4.87289401,105610.0,105600.0,0.0074999]
[1749318154533,4.8474675,105610.0,105600.0,0.0034999]
[1749318154737,4.86623224,105610.0,105600.0,0.0054999]
[1749318154944,4.8484675,105610.0,105600.0,0.0054999]
[1749318155178,4.86623224,105610.0,105600.0,0.0054999]
[1749318155367,4.8484675,105610.0,105600.0,0.0054999]
[1749318155520,4.8474675,105610.0,105600.0,0.0024999]
[1749318155723,4.86523225,105610.0,105600.0,0.0024999]
[1749318155936,4.85412926,105610.0,105600.0,0.0024999]
[1749318156138,4.87289401,105610.0,105600.0,0.0034999]
[1749318156430,4.87289402,105610.0,105600.0,0.0034999]
[1749318156646,4.85512928,105610.0,105600.0,0.0034999]
[1749318156874,4.86623224,105610.0,105600.0,0.0034999]
[1749318157131,4.87289372,105610.0,105600.0,0.0034999]
[1749318157389,4.86623218,105610.0,105600.0,0.0034999]
[1749318157624,4.86623223,105610.0,105600.0,0.0034999]
[1749318157876,4.86623224,105610.0,105600.0,0.0034999]
[1749318158117,4.872894,105610.0,105600.0,0.0034999]
[1749318158370,4.87289397,105610.0,105600.0,0.0034999]
[1749318158577,4.87289398,105610.0,105600.0,0.0034999]
[1749318158793,4.86623225,105610.0,105600.0,0.0034999]
[1749318159042,4.872894,105610.0,105600.0,0.0034999]
[1749318159262,4.86623222,105610.0,105600.0,0.0034999]
[1749318159481,4.85512927,105610.0,105600.0,0.0034999]
[1749318159705,4.87289399,105610.0,105600.0,0.0034999]
[1749318159920,4.872894,105610.0,105600.0,0.0034999]
[1749318160115,4.85512927,105610.0,105600.0,0.0034999]
[1749318160333,4.87289399,105610.0,105600.0,0.0034999]
[1749318161000,4.8484675,105610.0,105600.0,0.0034999]
[1749318161223,4.86623223,105610.0,105600.0,0.0034999]
[1749318161435,4.86623222,105610.0,105600.0,0.0034999]
[1749318161602,4.87289399,105610.0,105600.0,0.0034999]
[1749318162012,4.8484675,105610.0,105600.0,0.0034999]
[1749318162225,4.87289422,105610.0,105600.0,0.0034999]
[1749318162423,4.89303019,105610.0,105600.0,0.0034999]
[1749318162640,4.93926306,105610.0,105600.0,0.0034999]
[1749318162838,4.99714183,105610.0,105600.0,0.0034999]
[1749318163049,5.00380408,105610.0,105600.0,0.0034999]
[1749318163740,5.00378176,105610.0,105600.0,0.0034999]
[1749318163913,5.00377339,105610.0,105600.0,0.0034999]
[1749318164957,4.99711953,105610.0,105600.0,0.0034999]
[1749318165151,5.00377339,105610.0,105600.0,0.0034999]
[1749318165352,0.97536987,105610.0,105600.0,0.0034999]
[1749318165690,0.86122677,105610.0,105600.0,0.0034999]
[1749318166012,4.9793759,105610.0,105600.0,0.0034999]
[1749318166209,4.9860298,105610.0,105600.0,0.0034999]
[1749318166420,5.00377081,105610.0,105600.0,0.0034999]
[1749318166568,4.97538415,105610.0,105600.0,0.0034999]
[1749318166967,4.97538458,105610.0,105600.0,0.0034999]
[1749318167170,4.97839367,105610.0,105600.0,0.0034999]
[1749318167379,0.85359067,105610.0,105600.0,0.0034999]
[1749318167578,4.98504507,105610.0,105600.0,0.0034999]
[1749318167783,5.00278219,105610.0,105600.0,0.0034999]
[1749318168027,5.00278221,105610.0,105600.0,0.0034999]
[1749318168270,5.00278219,105610.0,105600.0,0.0034999]
[1749318168477,4.99613082,105610.0,105600.0,0.0034999]
[1749318168700,5.01344189,105610.0,105600.0,0.0034999]
[1749318168959,4.76819627,105590.0,105580.0,0.002]
[1749318169254,4.76819627,105590.0,105580.0,0.00213634]
[1749318169255,5.38030303,105590.0,105580.0,0.00213634]
[1749318169476,5.38030371,105590.0,105580.0,0.00213634]
[1749318169702,5.3235,105590.0,105580.0,0.00213634]
[1749318169929,5.35591021,105590.0,105580.0,0.00213634]
[1749318170149,5.39103998,105590.0,105580.0,0.00213634]
[1749318170362,5.48943946,105590.0,105580.0,0.00213634]
[1749318170589,5.45037648,105590.0,105580.0,0.00213634]
[1749318170812,5.45137648,105590.0,105580.0,0.00313634]
[1749318171280,5.43363574,105590.0,105580.0,0.00313634]
[1749318171509,5.45137648,105590.0,105580.0,0.00313634]
[1749318171771,5.42698297,105590.0,105580.0,0.00313634]
[1749318172193,5.45137717,105590.0,105580.0,0.00313634]
[1749318172753,5.45137721,105590.0,105580.0,0.00313634]
[1749318172946,5.42698297,105590.0,105580.0,0.00313634]
[1749318173267,5.47920743,105590.0,105580.0,0.00313634]
[1749318173469,5.50754728,105590.0,105580.0,0.00313634]
[1749318173697,5.48980601,105590.0,105580.0,0.00313634]
[1749318173836,5.50754728,105590.0,105580.0,0.00313634]
[1749318174309,5.50750136,105590.0,105580.0,0.00313634]
[1749318174646,5.50748414,105590.0,105580.0,0.00313634]
[1749318174866,5.48315304,105590.0,105580.0,0.00313634]
[1749318175170,5.50748414,105590.0,105580.0,0.00313634]
[1749318175365,5.48315304,105590.0,105580.0,0.00313634]
[1749318175558,5.50748421,105590.0,105580.0,0.00313634]
[1749318175983,5.5074842,105590.0,105580.0,0.00313634]
[1749318176390,5.50084846,105590.0,105580.0,0.00313634]
[1749318176596,5.50748424,105590.0,105580.0,0.00313634]
[1749318176792,5.50084846,105590.0,105580.0,0.00313634]
[1749318177161,5.48315304,105590.0,105580.0,0.00313634]
[1749318177384,5.50084852,105590.0,105580.0,0.00313634]
[1749318177600,5.50748434,105590.0,105580.0,0.00313634]
[1749318178213,5.50747034,105590.0,105580.0,0.00313634]
[1749318178439,5.50083835,105590.0,105580.0,0.00313634]
[1749318178628,5.50747034,105590.0,105580.0,0.00313634]
[1749318180044,5.46297233,105590.0,105580.0,0.00313634]
[1749318180398,5.50747457,105590.0,105580.0,0.00313634]
[1749318180553,5.46297229,105590.0,105580.0,0.00313634]
[1749318180709,5.4629723,105590.0,105580.0,0.00313634]
[1749318181065,5.46960545,105590.0,105580.0,0.00313634]
[1749318181211,5.50747459,105590.0,105580.0,0.00313634]
[1749318181636,5.50747527,105590.0,105580.0,0.00313634]
[1749318181875,1.32711423,105590.0,105580.0,0.00313634]
[1749318182071,5.45191723,105590.0,105580.0,0.00313634]
[1749318182344,5.46960611,105590.0,105580.0,0.00313634]
[1749318182528,5.50747525,105590.0,105580.0,0.00313634]
[1749318182717,5.50084192,105590.0,105580.0,0.00313634]
[1749318182936,5.50747525,105590.0,105580.0,0.00313634]
[1749318183766,5.4452839,105590.0,105580.0,0.00313634]
[1749318183975,5.50749338,105590.0,105580.0,0.00313634]
[1749318184178,5.46962422,105590.0,105580.0,0.00313634]
[1749318184391,5.4696242,105590.0,105580.0,0.00313634]
[1749318184627,5.02982646,105590.0,105580.0,0.00313634]
[1749318184835,5.05596642,105590.0,105580.0,0.00313634]
[1749318184994,5.0382641,105590.0,105580.0,0.00313634]
[1749318185195,5.03162442,105590.0,105580.0,0.00313634]
[1749318185402,5.04933003,105590.0,105580.0,0.00313634]
[1749318185602,5.05596963,105590.0,105580.0,0.00313634]
[1749318185818,5.03826402,105590.0,105580.0,0.00313634]
[1749318186178,5.05596963,105590.0,105580.0,0.00313634]
[1749318187010,5.03162442,105590.0,105580.0,0.01973634]
[1749318187212,5.04933003,105590.0,105580.0,0.01973634]
[1749318187427,5.05596963,105590.0,105580.0,0.01973634]
[1749318187630,5.04933003,105590.0,105580.0,0.01973634]
[1749318187796,5.05596963,105590.0,105580.0,0.01973634]
[1749318187998,4.96880963,105590.0,105580.0,0.01973634]
[1749318188285,5.05596963,105590.0,105580.0,0.01973634]
[1749318188592,5.03162442,105590.0,105580.0,0.01973634]
[1749318188741,5.03826402,105590.0,105580.0,0.00313634]
[1749318188950,5.03162442,105590.0,105580.0,0.00313634]
[1749318189161,5.05596963,105590.0,105580.0,0.00313634]
[1749318189926,5.34280963,105590.0,105580.0,0.00313634]
[1749318190134,5.29662702,105590.0,105580.0,0.00313634]
[1749318190337,5.31434068,105590.0,105580.0,0.00313634]
[1749318190785,5.29662922,105590.0,105580.0,0.00313634]
[1749318191195,5.31434068,105590.0,105580.0,0.00313634]
[1749318191386,5.35220982,105590.0,105580.0,0.00313634]
[1749318191806,5.33449835,105590.0,105580.0,0.00313634]
[1749318192008,5.35220982,105590.0,105580.0,0.00313634]
[1749318192472,5.33449836,105590.0,105580.0,0.00313634]
[1749318192627,5.34556802,105590.0,105580.0,0.01843634]
[1749318192831,5.35220982,105590.0,105580.0,0.01843634]
[1749318193272,5.37064682,105590.0,105580.0,0.01843634]
[1749318193468,5.37064855,105590.0,105580.0,0.00313634]
[1749318193866,5.37067206,105590.0,105580.0,0.00313634]
[1749318194074,5.36402338,105590.0,105580.0,0.00313634]
[1749318194247,5.37067206,105590.0,105580.0,0.00313634]
[1749318194433,5.35294224,105590.0,105580.0,0.00313634]
[1749318194684,5.46707154,105590.0,105580.0,0.00313634]
[1749318195088,5.01929483,105590.0,105580.0,0.01843634]
[1749318195296,5.00085783,105590.0,105580.0,0.03433634]
[1749318195497,4.98312439,105590.0,105580.0,0.03433634]
[1749318195742,4.97647571,105590.0,105580.0,0.03433634]
[1749318195949,4.99420825,105590.0,105580.0,0.03433634]
[1749318196154,4.9831255,105590.0,105580.0,0.03433634]
[1749318196375,5.00085826,105590.0,105580.0,0.03433634]
[1749318196577,5.00085827,105590.0,105580.0,0.03433634]
[1749318197505,4.88931571,105590.0,105580.0,0.03433634]
[1749318197715,4.90707684,105590.0,105580.0,0.03433634]
[1749318198170,4.89597613,105590.0,105580.0,0.03433634]
[1749318198394,4.90707684,105590.0,105580.0,0.03433634]
[1749318198615,4.878737,105590.0,105580.0,0.03433634]
[1749318198852,4.86097587,105590.0,105580.0,0.03433634]
[1749318199531,4.88539742,105590.0,105580.0,0.03433634]
[1749318199778,4.86763629,105590.0,105580.0,0.03433634]
[1749318200694,4.86097587,105590.0,105580.0,0.03433634]
[1749318200965,4.878737,105590.0,105580.0,0.03433634]
[1749318201510,4.86763622,105590.0,105580.0,0.03433634]
[1749318201719,4.9138123,105590.0,105580.0,0.03433634]
[1749318201969,4.88939106,105590.0,105580.0,0.03433634]
[1749318202236,4.8960514,105590.0,105580.0,0.03433634]
[1749318202737,4.88939106,105590.0,105580.0,0.03433634]
[1749318202963,4.8960514,105590.0,105580.0,0.03433634]
[1749318203206,4.9138123,105590.0,105580.0,0.03433634]
[1749318203442,4.91381214,105590.0,105580.0,0.03433634]
[1749318203678,4.90715178,105590.0,105580.0,0.03433634]
[1749318203933,4.88939106,105590.0,105580.0,0.03433634]
[1749318204154,4.90715152,105590.0,105580.0,0.03433634]
[1749318204379,4.91381169,105590.0,105580.0,0.03433634]
[1749318204850,4.88939106,105590.0,105580.0,0.03433634]
[1749318205108,4.90715152,105590.0,105580.0,0.03433634]
[1749318205337,4.89605123,105590.0,105580.0,0.03433634]
[1749318205547,4.91381169,105590.0,105580.0,0.03433634]
[1749318205723,4.88539655,105590.0,105580.0,0.03433634]
[1749318205958,4.91380875,105590.0,105580.0,0.03433634]
[1749318206162,4.91380915,105590.0,105580.0,0.03433634]
[1749318206368,4.91380803,105590.0,105580.0,0.03433634]
[1749318206606,4.89604724,105590.0,105580.0,0.03433634]
[1749318206826,4.90714585,105590.0,105580.0,0.03433634]
[1749318207040,4.91380502,105590.0,105580.0,0.03433634]
[1749318207919,4.89604724,105590.0,105580.0,0.03433634]
[1749318208128,4.91380569,105590.0,105580.0,0.03433634]
[1749318208303,4.89604742,105590.0,105580.0,0.03433634]
[1749318208720,4.91380569,105590.0,105580.0,0.03433634]
[1749318208922,4.89604742,105590.0,105580.0,0.03433634]
[1749318209126,4.91380569,105590.0,105580.0,0.03433634]
[1749318209529,4.88539349,105590.0,105580.0,0.03433634]
[1749318209739,4.88539214,105590.0,105580.0,0.03433634]
[1749318209975,4.88539214,105590.0,105580.0,0.01843634]
[1749318210185,4.86097587,105590.0,105580.0,0.01843634]
[1749318210412,4.88539214,105590.0,105580.0,0.01843634]
[1749318211344,4.88539296,105590.0,105580.0,0.03473634]
[1749318211542,4.88539515,105590.0,105580.0,0.03473634]
[1749318211752,4.87873535,105590.0,105580.0,0.03473634]
[1749318211959,4.88539515,105590.0,105580.0,0.03473634]
[1749318212122,4.86097587,105590.0,105580.0,0.03473634]
[1749318212495,4.88539515,105590.0,105580.0,0.03473634]
[1749318213602,4.88539502,105590.0,105580.0,0.03473634]
[1749318213804,4.87873525,105590.0,105580.0,0.03473634]
[1749318214131,4.88539502,105590.0,105580.0,0.03473634]
[1749318214946,4.88540192,105590.0,105580.0,0.03473634]
[1749318215153,4.88540215,105590.0,105580.0,0.03473634]
[1749318215588,4.86097587,105590.0,105580.0,0.03473634]
[1749318215791,4.88540215,105590.0,105580.0,0.03473634]
[1749318215997,4.86097587,105590.0,105580.0,0.03473634]
[1749318216241,4.88540215,105590.0,105580.0,0.03473634]
[1749318216791,4.86763758,105590.0,105580.0,0.03473634]
[1749318217199,4.88540215,105590.0,105580.0,0.03473634]
[1749318217751,4.87874044,105590.0,105580.0,0.03473634]
[1749318217883,4.88540215,105590.0,105580.0,0.03473634]
[1749318218090,4.87874044,105590.0,105580.0,0.03473634]
[1749318218294,4.88540215,105590.0,105580.0,0.03473634]
[1749318218568,4.87874044,105590.0,105580.0,0.03473634]
[1749318219102,4.86097587,105590.0,105580.0,0.03508597]
[1749318219325,4.88540215,105590.0,105580.0,0.03508597]
[1749318220612,4.86763801,105590.0,105580.0,0.03508597]
[1749318220952,4.88540372,105590.0,105580.0,0.03508597]
[1749318221375,4.94220744,105590.0,105580.0,0.03508597]
[1749318221951,4.91383199,105590.0,105580.0,0.03508597]
[1749318222156,4.87596284,105590.0,105580.0,0.03508597]
[1749318222367,4.8749624,105590.0,105580.0,0.03408597]
[1749318222572,4.86930075,105590.0,105580.0,0.03408597]
[1749318222772,4.85619797,105590.0,105580.0,0.03408597]
[1749318222973,4.85619622,105590.0,105580.0,0.03408597]
[1749318223189,4.87295594,105590.0,105580.0,0.03408597]
[1749318223417,4.86729605,105590.0,105580.0,0.03408597]
[1749318223618,4.87395594,105590.0,105580.0,0.03408597]
[1749318224237,4.87495594,105590.0,105580.0,0.03508597]
[1749318224456,4.8471255,105590.0,105580.0,0.03508597]
[1749318224662,4.82936589,105590.0,105580.0,0.03508597]
[1749318224865,4.84712621,105590.0,105580.0,0.03508597]
[1749318225304,4.8471262,105590.0,105580.0,0.03508597]
[1749318225516,4.8186966,105590.0,105580.0,0.03508597]
[1749318225694,4.8186994,105590.0,105580.0,0.03508597]
[1749318226192,4.81869936,105590.0,105580.0,0.03508597]
[1749318226407,4.81869926,105590.0,105580.0,0.03508597]
[1749318227224,4.80093385,105590.0,105580.0,0.03508597]
[1749318227450,4.7942765,105590.0,105580.0,0.03508597]
[1749318227867,4.81202945,105590.0,105580.0,0.03508597]
[1749318228403,4.8186868,105590.0,105580.0,0.03508597]
[1749318228606,4.7942765,105590.0,105580.0,0.03508597]
[1749318228817,4.81202945,105590.0,105580.0,0.03508597]
[1749318229018,4.8186868,105590.0,105580.0,0.03508597]
[1749318229577,4.7942765,105590.0,105580.0,0.03508597]
[1749318229779,4.8186868,105590.0,105580.0,0.03508597]
[1749318229936,4.81202945,105590.0,105580.0,0.03508597]
[1749318230152,4.8186868,105590.0,105580.0,0.03508597]
[1749318230881,4.7942765,105590.0,105580.0,0.03508597]
[1749318231087,4.81202945,105590.0,105580.0,0.03508597]
[1749318231308,4.8186868,105590.0,105580.0,0.03508597]
[1749318231519,4.71562997,105590.0,105580.0,0.03508597]
[1749318231715,4.72228732,105590.0,105580.0,0.03508597]
[1749318231959,4.70453437,105590.0,105580.0,0.03508597]
[1749318232150,4.72228732,105590.0,105580.0,0.03508597]
[1749318232349,4.71562997,105590.0,105580.0,0.03508597]
[1749318232829,4.69787702,105590.0,105580.0,0.03508597]
[1749318233031,4.70453437,105590.0,105580.0,0.03508597]
[1749318233243,4.72228732,105590.0,105580.0,0.03508597]
[1749318233419,4.72228406,105590.0,105580.0,0.03508597]
[1749318233835,4.72228284,105590.0,105580.0,0.03508597]
[1749318234041,4.69787702,105590.0,105580.0,0.03508597]
[1749318234254,0.57307402,105590.0,105580.0,0.03508598]
[1749318234459,0.58800838,105590.0,105580.0,0.03508599]
[1749318234661,0.56528678,105590.0,105580.0,0.03508599]
[1749318234862,0.56528673,105590.0,105580.0,0.03508599]
[1749318235497,0.56528301,105590.0,105580.0,0.03508599]
[1749318235717,0.55863111,105590.0,105580.0,0.03508599]
[1749318235852,0.54753411,105590.0,105580.0,0.03508599]
[1749318236053,0.5586196,105590.0,105580.0,0.03508599]
[1749318236254,0.56527109,105590.0,105580.0,0.03508599]
[1749318237239,0.5586196,105590.0,105580.0,0.03508599]
[1749318237668,0.54753377,105590.0,105580.0,0.03508599]
[1749318237852,0.56527109,105590.0,105580.0,0.03508599]
[1749318239043,0.56526518,105590.0,105580.0,0.03508599]
[1749318239245,0.55861353,105590.0,105580.0,0.03508599]
[1749318239448,0.5475315,105590.0,105580.0,0.03508599]
[1749318239646,0.56526275,105590.0,105580.0,0.03508599]
[1749318240328,0.56526275,105590.0,105580.0,0.2339872]
[1749318240532,0.55861353,105590.0,105580.0,0.03508599]
[1749318240862,0.54088228,105590.0,105580.0,0.03508599]
[1749318241062,0.55861115,105590.0,105580.0,0.03508599]
[1749318241294,0.54088228,105590.0,105580.0,0.03508599]
[1749318241501,0.55861115,105590.0,105580.0,0.03508599]
[1749318241748,0.54088228,105590.0,105580.0,0.03508599]
[1749318241910,0.55861115,105590.0,105580.0,0.03508599]
[1749318242313,0.55861115,105590.0,105580.0,0.25292982]
[1749318242851,0.55861196,105590.0,105580.0,0.25292982]
[1749318243056,0.55861185,105590.0,105580.0,0.26240087]
[1749318243267,0.36094001,105590.0,105580.0,0.67528824]
[1749318243479,0.37988092,105590.0,105580.0,0.67528824]
[1749318243681,0.38813907,105590.0,105580.0,0.67528824]
[1749318243914,0.39760948,105590.0,105580.0,0.67528825]
[1749318244566,0.40708007,105590.0,105580.0,0.66581739]
[1749318244793,0.39760948,105590.0,105580.0,0.67528825]
[1749318245003,0.40707998,105590.0,105580.0,0.67528825]
[1749318245214,0.38935124,105590.0,105580.0,0.67528825]
[1749318245386,0.59648928,105590.0,105580.0,0.67528825]
[1749318246542,0.39760333,105590.0,105580.0,0.67528825]
[1749318246747,0.37988137,105590.0,105580.0,0.67528825]
[1749318246993,0.39760333,105590.0,105580.0,0.67528825]
[1749318247144,0.37988137,105590.0,105580.0,0.67528825]
[1749318247342,0.36919174,105590.0,105580.0,0.67528825]
[1749318247573,0.04813202,105590.0,105580.0,0.67528826]
[1749318247861,0.03041006,105590.0,105580.0,0.67528826]
[1749318248833,0.03988047,105590.0,105580.0,0.67528826]
[1749318249569,0.03988047,105590.0,105580.0,0.68458625]
[1749318250411,0.03988047,105590.0,105580.0,0.67528826]
[1749318252744,0.03041006,105590.0,105580.0,0.67528826]
[1749318254105,0.03988047,105590.0,105580.0,0.67528826]
[1749318255175,0.03041006,105590.0,105580.0,0.67528826]
[1749318255799,0.02093974,105590.0,105580.0,0.67528826]
[1749318256743,0.03988002,105590.0,105580.0,0.67528826]
[1749318257173,0.03040979,105590.0,105580.0,0.67528826]
[1749318257628,0.02093974,105590.0,105580.0,0.67528826]
[1749318257796,0.03040997,105590.0,105580.0,0.67528826]
[1749318258159,0.03988011,105590.0,105580.0,0.67528826]
[1749318258368,0.03040979,105590.0,105580.0,0.67528826]
[1749318258773,0.03040988,105590.0,105580.0,0.67528826]
[1749318260211,0.03040979,105590.0,105580.0,0.67528826]
[1749318261804,0.03988002,105590.0,105580.0,0.67528826]
[1749318264255,0.03040979,105590.0,105580.0,0.67528826]
[1749318264677,0.03987993,105590.0,105580.0,0.67528826]
[1749318266066,0.05762781,105590.0,105580.0,0.67528826]
[1749318266637,0.03987993,105590.0,105580.0,0.67528826]
[1749318267210,0.05762781,105590.0,105580.0,0.67528826]
[1749318269032,0.04816228,105590.0,105580.0,0.67528826]
[1749318269231,0.02922227,105590.0,105580.0,0.67528826]
[1749318269409,0.01975249,105590.0,105580.0,1.26222425]
[1749318269609,0.002,105590.0,105580.0,1.26222425]
[1749318270311,0.002,105590.0,105580.0,1.2767651]
[1749318270513,0.002,105590.0,105580.0,1.27676511]
[1749318271238,0.001,105590.0,105580.0,1.30522311]
[1749318271455,0.39280141,105610.0,105600.0,0.24940192]
[1749318271645,0.39280141,105610.0,105600.0,1.02692812]
[1749318271852,0.39280141,105610.0,105600.0,1.02692811]
[1749318272007,0.58217741,105610.0,105600.0,1.01745905]
[1749318272209,0.59164621,105610.0,105600.0,1.03639744]
[1749318272423,0.5739016,105610.0,105600.0,1.02692829]
[1749318272804,0.5749016,105610.0,105600.0,1.02792829]
[1749318273028,0.59264621,105610.0,105600.0,1.0468665]
[1749318273475,0.59263954,105610.0,105600.0,1.0468665]
[1749318273656,0.5749016,105610.0,105600.0,1.04686649]
[1749318273876,0.59263976,105610.0,105600.0,1.04686649]
[1749318274067,0.40326378,105610.0,105600.0,1.04686649]
[1749318274281,0.39379498,105610.0,105600.0,1.04686649]
[1749318274476,0.5654328,105610.0,105600.0,1.03739743]
[1749318274828,0.3760568,105610.0,105600.0,1.04686649]
[1749318275060,0.39379498,105610.0,105600.0,1.04686649]
[1749318275269,0.39379489,105610.0,105600.0,1.04686649]
[1749318275475,0.39379488,105610.0,105600.0,1.04686649]
[1749318275643,0.37605671,105610.0,105600.0,1.04686649]
[1749318275847,0.39379488,105610.0,105600.0,1.04686649]
[1749318276058,0.37605671,105610.0,105600.0,1.04686649]
[1749318276233,0.39379488,105610.0,105600.0,1.04686649]
[1749318276434,0.39379502,105610.0,105600.0,1.04686649]
[1749318277254,0.40326373,105610.0,105600.0,1.04686649]
[1749318277469,0.38552542,105610.0,105600.0,1.04686649]
[1749318277918,0.40326004,105610.0,105600.0,1.04686649]
[1749318278995,0.39379133,105610.0,105600.0,1.04686649]
[1749318279192,0.38432271,105610.0,105600.0,1.04686649]
[1749318279372,0.01711974,105610.0,105600.0,1.04686649]
[1749318279569,0.04431971,105610.0,105600.0,1.04686649]
[1749318279774,0.05378748,105610.0,105600.0,1.04686648]
[1749318280072,0.026588,105610.0,105600.0,1.04686648]
[1749318280332,0.03605644,105610.0,105600.0,1.04686648]
[1749318280753,0.00765157,105610.0,105600.0,1.54668247]
[1749318280958,0.00765157,105610.0,105600.0,1.56122332]
[1749318281595,0.00765157,105610.0,105600.0,1.56122331]
[1749318281823,0.00665157,105610.0,105600.0,1.56022331]
[1749318282266,0.00765157,105610.0,105600.0,1.56322331]
[1749318282497,0.00865157,105610.0,105600.0,1.56622331]
[1749318282998,0.00865157,105610.0,105600.0,1.81190331]
[1749318283251,0.00865157,105610.0,105600.0,2.21531982]
[1749318283490,0.00865157,105610.0,105600.0,2.24376982]
[1749318283734,0.00865157,105610.0,105600.0,1.8403533]
[1749318283950,0.00765157,105610.0,105600.0,1.8373533]
[1749318284179,0.00665157,105610.0,105600.0,1.8342733]
[1749318284394,0.00765157,105610.0,105600.0,1.8372733]
[1749318284594,0.00865157,105610.0,105600.0,1.8402733]
[1749318284800,0.00665157,105610.0,105600.0,1.8342733]
[1749318285011,0.00665157,105610.0,105600.0,1.4665933]
[1749318285235,0.00865157,105610.0,105600.0,1.8462733]
[1749318294031,0.002,105610.0,105600.0,1.8462733]
[1749318296921,0.002,105610.0,105600.0,1.03944028]
[1749318297129,0.002,105610.0,105600.0,1.8462733]
[1749318299301,0.002,105610.0,105600.0,1.84627329]
[1749318310622,0.04600505,105610.0,105600.0,0.63416027]
[1749318310862,0.23254408,105610.0,105600.0,0.58170036]
[1749318311067,0.06210487,105610.0,105600.0,0.94579103]
[1749318311287,0.07157349,105610.0,105600.0,1.36374839]
[1749318311645,0.0810422,105610.0,105600.0,1.36374839]
[1749318312049,0.0810422,105610.0,105600.0,0.96033188]
[1749318312270,0.07157349,105610.0,105600.0,0.96033188]
[1749318312456,0.07157349,105610.0,105600.0,1.01699122]
[1749318313032,0.07157349,105610.0,105600.0,0.64343122]
[1749318313245,0.07157349,105610.0,105600.0,1.01699122]
[1749318313444,0.06210487,105610.0,105600.0,1.01699122]
[1749318313622,0.05263634,105610.0,105600.0,0.96033188]
[1749318313833,0.06210487,105610.0,105600.0,0.96033188]
[1749318314449,0.05263634,105610.0,105600.0,0.96033188]
[1749318314680,0.06210478,105610.0,105600.0,0.96033188]
[1749318315873,0.06210487,105610.0,105600.0,0.96033188]
[1749318316297,0.06210478,105610.0,105600.0,0.96033188]
[1749318316507,0.07157331,105610.0,105600.0,0.96033188]
[1749318316858,0.06210478,105610.0,105600.0,0.96033188]
[1749318316972,0.0715734,105610.0,105600.0,0.96033188]
[1749318317180,0.06210478,105610.0,105600.0,0.96033188]
[1749318317788,0.06210478,105610.0,105600.0,0.45689316]
[1749318317789,0.2609494,105610.0,105600.0,0.45689316]
[1749318318018,0.26095003,105610.0,105600.0,0.84939182]
[1749318318212,0.27868799,105610.0,105600.0,0.84939182]
[1749318318432,0.26095003,105610.0,105600.0,0.84939182]
[1749318318620,0.26921702,105610.0,105600.0,0.83992258]
[1749318318830,0.25148177,105610.0,105600.0,0.84939191]
[1749318319054,0.2692171,105610.0,105600.0,0.84939191]
[1749318319232,0.26921708,105610.0,105600.0,0.84939191]
[1749318319433,0.26921708,105610.0,105600.0,0.85886106]
[1749318319631,0.25148177,105610.0,105600.0,0.85886106]
[1749318321879,0.25148177,105610.0,105600.0,0.84939191]
[1749318322078,0.25148177,105610.0,105600.0,0.85886115]
[1749318323041,0.26095057,105610.0,105600.0,0.86833021]
[1749318325617,0.26095057,105610.0,105600.0,0.85886115]
[1749318326734,0.26095057,105610.0,105600.0,0.8683303]
[1749318336747,0.2786801,105610.0,105600.0,0.8683303]
[1749318337526,0.0893041,105610.0,105600.0,0.86832976]
[1749318337718,0.07157457,105610.0,105600.0,0.86832976]
[1749318338231,0.27869359,105610.0,105600.0,0.8588607]
[1749318339552,0.27869451,105610.0,105600.0,0.8588607]
[1749318339754,0.27869452,105610.0,105600.0,0.8588607]
[1749318341420,0.27869452,105610.0,105600.0,0.34506963]
[1749318341421,0.58201351,105610.0,105600.0,0.34506963]
[1749318341630,0.58201351,105610.0,105600.0,0.63158963]
[1749318342057,0.59976349,105610.0,105600.0,0.63158963]
[1749318342258,0.59876349,105610.0,105600.0,0.62558963]
[1749318342400,0.59776349,105610.0,105600.0,0.61958963]
[1749318342606,0.59976349,105610.0,105600.0,0.62958963]
[1749318342814,0.60641887,105610.0,105600.0,0.62958963]
[1749318343298,0.58866894,105610.0,105600.0,0.62958963]
[1749318343499,0.58866896,105610.0,105600.0,0.62958963]
[1749318343616,0.60641682,105610.0,105600.0,0.62958963]
[1749318343817,0.60641683,105610.0,105600.0,0.62958963]
[1749318344064,0.61307228,105610.0,105600.0,0.62958963]
[1749318344745,0.60641683,105610.0,105600.0,0.62958963]
[1749318344956,0.58866896,105610.0,105600.0,0.62958963]
[1749318345148,0.60641389,105610.0,105600.0,0.62958963]
[1749318345910,0.61306949,105610.0,105600.0,0.62958963]
[1749318346059,0.61306949,105610.0,105600.0,0.38390963]
[1749318346276,0.60641389,105610.0,105600.0,0.38394963]
[1749318346684,0.61307282,105610.0,105600.0,0.38394963]
[1749318346974,0.58866896,105610.0,105600.0,0.38394963]
[1749318347189,0.59532456,105610.0,105600.0,0.38394963]
[1749318347408,0.61307282,105610.0,105600.0,0.38394963]
[1749318347967,0.61307417,105610.0,105600.0,0.38394963]
[1749318348514,0.60642084,105610.0,105600.0,0.38394963]
[1749318348742,0.59532591,105610.0,105600.0,0.38394963]
[1749318349226,0.61307779,105610.0,105600.0,0.38394963]
[1749318349837,0.61307567,105610.0,105600.0,0.38394963]
[1749318350049,0.61307475,105610.0,105600.0,0.38394963]
[1749318350257,0.60641855,105610.0,105600.0,0.38394963]
[1749318350481,0.59532507,105610.0,105600.0,0.38394963]
[1749318350890,0.59532504,105610.0,105600.0,0.38394963]
[1749318351096,0.61307461,105610.0,105600.0,0.38394963]
[1749318351297,0.61307466,105610.0,105600.0,0.38394963]
[1749318351498,0.61307462,105610.0,105600.0,0.38394963]
[1749318351709,0.61307477,105610.0,105600.0,0.38394963]
[1749318351908,0.61307465,105610.0,105600.0,0.38394963]
[1749318352113,0.58866896,105610.0,105600.0,0.38394963]
[1749318352740,0.60641849,105610.0,105600.0,0.38394963]